[Event "*** Titled Tuesday Blitz"]
[Site "Chess.com"]
[Date "2021.02.16"]
[Round "6"]
[White "cstevens1"]
[Black "PavelChernomordik"]
[Result "0-1"]
[WhiteElo "2619"]
[BlackElo "2392"]
[TimeControl "180+1"]
[EndTime "11:10:21 PST"]
[Termination "PavelChernomordik won by resignation"]

1. e4 {[%clk 0:03:00.9]} 1... g6 {[%clk 0:02:59.8]} 2. d4 {[%clk 0:03:00.8]}
2... Bg7 {[%clk 0:02:59.9]} 3. Nc3 {[%clk 0:03:01.7]} 3... d6 {[%clk 0:02:59.6]}
4. Nf3 {[%clk 0:03:02.2]} 4... a6 {[%clk 0:02:59.4]} 5. h3 {[%clk 0:03:02.7]}
5... b5 {[%clk 0:02:59]} 6. Bd3 {[%clk 0:03:03.2]} 6... Bb7 {[%clk 0:02:58.1]}
7. Ne2 {[%clk 0:03:03.7]} 7... c5 {[%clk 0:02:55.5]} 8. c3 {[%clk 0:03:03.9]}
8... Nd7 {[%clk 0:02:54.7]} 9. Ng3 {[%clk 0:03:04.3]} 9... Qc7 {[%clk
0:02:54.3]} 10. Qe2 {[%clk 0:03:04.5]} 10... e5 {[%clk 0:02:48.9]} 11. O-O
{[%clk 0:03:04.5]} 11... Ngf6 {[%clk 0:02:47.9]} 12. Be3 {[%clk 0:02:52.5]}
12... O-O {[%clk 0:02:43.6]} 13. Rac1 {[%clk 0:02:52.1]} 13... Rfe8 {[%clk
0:02:36.5]} 14. d5 {[%clk 0:02:47.9]} 14... c4 {[%clk 0:02:34.5]} 15. Bb1 {[%clk
0:02:47.8]} 15... Nc5 {[%clk 0:02:33.4]} 16. Nh2 {[%clk 0:02:44]} 16... Bc8
{[%clk 0:02:29.4]} 17. Ng4 {[%clk 0:02:43.2]} 17... Nxg4 {[%clk 0:02:21.1]} 18.
hxg4 {[%clk 0:02:43.4]} 18... a5 {[%clk 0:02:18.6]} 19. f3 {[%clk 0:02:41.4]}
19... Ba6 {[%clk 0:02:10.4]} 20. Kf2 {[%clk 0:02:40.4]} 20... b4 {[%clk
0:02:03.5]} 21. Rh1 {[%clk 0:02:40.8]} 21... Rab8 {[%clk 0:02:00]} 22. Rh2
{[%clk 0:02:32.7]} 22... Nd3+ {[%clk 0:01:46.8]} 23. Bxd3 {[%clk 0:02:32.1]}
23... cxd3 {[%clk 0:01:46.4]} 24. Qd2 {[%clk 0:02:33]} 24... bxc3 {[%clk
0:01:38.2]} 25. Rxc3 {[%clk 0:02:10.5]} 25... Qb7 {[%clk 0:01:37.2]} 26. b3
{[%clk 0:01:27.9]} 26... Rbc8 {[%clk 0:01:35.2]} 27. Rxd3 {[%clk 0:01:02.6]}
27... Bxd3 {[%clk 0:01:32.7]} 28. Qxd3 {[%clk 0:01:03.5]} 28... Qb4 {[%clk
0:01:26.3]} 29. Ne2 {[%clk 0:00:59.3]} 29... Qa3 {[%clk 0:01:21.6]} 30. Qd2
{[%clk 0:00:53.9]} 30... a4 {[%clk 0:01:17.9]} 31. Bh6 {[%clk 0:00:52.1]} 31...
Bh8 {[%clk 0:01:16.6]} 32. Qg5 {[%clk 0:00:43.9]} 32... Qc5+ {[%clk 0:01:14.5]}
33. Kg3 {[%clk 0:00:39.6]} 33... axb3 {[%clk 0:01:11.7]} 34. axb3 {[%clk
0:00:39]} 34... Qc2 {[%clk 0:01:10.4]} 35. Qe3 {[%clk 0:00:31.7]} 35... Rb8
{[%clk 0:01:07.7]} 36. Qd2 {[%clk 0:00:15.4]} 36... Qxd2 {[%clk 0:01:04.6]} 37.
Bxd2 {[%clk 0:00:16.3]} 37... Rxb3 {[%clk 0:01:04.7]} 38. Bh6 {[%clk 0:00:14.7]}
38... Rc8 {[%clk 0:01:03]} 39. Ng1 {[%clk 0:00:15]} 39... Rc2 {[%clk 0:00:59.9]}
40. Nh3 {[%clk 0:00:15.4]} 40... Bf6 {[%clk 0:00:54.8]} 41. g5 {[%clk
0:00:11.1]} 41... Bd8 {[%clk 0:00:53.3]} 42. Nf2 {[%clk 0:00:11.8]} 42... Rbb2
{[%clk 0:00:46.8]} 43. Ng4 {[%clk 0:00:08.6]} 43... f5 {[%clk 0:00:41.3]} 44.
gxf6 {[%clk 0:00:08.5]} 44... Kf7 {[%clk 0:00:40.6]} 45. Bg5 {[%clk 0:00:06.7]}
45... h5 {[%clk 0:00:40.1]} 46. Nh6+ {[%clk 0:00:07.1]} 46... Kf8 {[%clk
0:00:39.5]} 47. Kh3 {[%clk 0:00:05.5]} 47... Rb1 {[%clk 0:00:31.5]} 48. g3
{[%clk 0:00:03.6]} 48... Rxh2+ {[%clk 0:00:29.8]} 49. Kxh2 {[%clk 0:00:04.5]}
49... Rb7 {[%clk 0:00:24.6]} 50. Kg2 {[%clk 0:00:03.9]} 50... Rh7 {[%clk
0:00:22.6]} 51. f4 {[%clk 0:00:02.7]} 51... exf4 {[%clk 0:00:19]} 52. gxf4
{[%clk 0:00:03.6]} 52... Bxf6 {[%clk 0:00:18.2]} 53. Bxf6 {[%clk 0:00:04.1]}
53... Rxh6 {[%clk 0:00:17.9]} 54. e5 {[%clk 0:00:05]} 54... dxe5 {[%clk
0:00:16.4]} 55. fxe5 {[%clk 0:00:05.5]} 55... g5 {[%clk 0:00:15.6]} 56. Bd8
{[%clk 0:00:03.8]} 56... Ke8 {[%clk 0:00:14.5]} 57. Ba5 {[%clk 0:00:02.7]} 57...
Ra6 {[%clk 0:00:13.4]} 58. Bc3 {[%clk 0:00:02.3]} 58... Ra3 {[%clk 0:00:12.9]}
59. Bd4 {[%clk 0:00:01.6]} 59... Ra4 {[%clk 0:00:12.6]} 60. Bc5 {[%clk 0:00:02]}
60... Ra5 {[%clk 0:00:12]} 61. Be3 {[%clk 0:00:02]} 61... Rxd5 {[%clk
0:00:11.4]} 62. Bxg5 {[%clk 0:00:02.9]} 62... Rxe5 {[%clk 0:00:10.9]} 63. Bf4
{[%clk 0:00:03.8]} 63... Rf5 {[%clk 0:00:10.4]} 64. Kg3 {[%clk 0:00:03.5]} 64...
Kf7 {[%clk 0:00:11.3]} 65. Be3 {[%clk 0:00:03.8]} 65... Kg6 {[%clk 0:00:12.2]}
66. Bg1 {[%clk 0:00:04.6]} 66... Rd5 {[%clk 0:00:11.7]} 67. Kh2 {[%clk
0:00:05.5]} 67... Rd3 {[%clk 0:00:11.5]} 68. Kh1 {[%clk 0:00:06.4]} 68... Kf5
{[%clk 0:00:11.1]} 69. Bh2 {[%clk 0:00:07.3]} 69... Kg4 {[%clk 0:00:10.8]} 70.
Bg1 {[%clk 0:00:08.2]} 70... Kh3 {[%clk 0:00:10.2]} 71. Bh2 {[%clk 0:00:09.1]}
71... Rd1+ {[%clk 0:00:09.5]} 72. Bg1 {[%clk 0:00:10]} 72... Rd2 {[%clk
0:00:08.8]} 73. Bb6 {[%clk 0:00:09.5]} 73... h4 {[%clk 0:00:07.9]} 74. Bg1
{[%clk 0:00:09.3]} 74... Re2 {[%clk 0:00:06.8]} 75. Bb6 {[%clk 0:00:09.3]} 75...
Kg3 {[%clk 0:00:06.6]} 76. Bg1 {[%clk 0:00:09.1]} 76... h3 {[%clk 0:00:06.3]}
77. Bb6 {[%clk 0:00:09]} 77... h2 {[%clk 0:00:04.1]} 78. Bf2+ {[%clk 0:00:06.3]}
78... Kxf2 {[%clk 0:00:03.3]} 0-1

[Event "*** Titled Tuesday Blitz"]
[Site "Chess.com"]
[Date "2021.02.16"]
[Round "6"]
[White "JQuiroga18"]
[Black "MPGM"]
[Result "0-1"]
[WhiteElo "2423"]
[BlackElo "2611"]
[TimeControl "180+1"]
[EndTime "11:10:27 PST"]
[Termination "MPGM won on time"]

1. e4 {[%clk 0:03:00.9]} 1... e5 {[%clk 0:02:56.5]} 2. Nf3 {[%clk 0:03:00.7]}
2... Nc6 {[%clk 0:02:55.9]} 3. d4 {[%clk 0:03:01]} 3... exd4 {[%clk 0:02:53.9]}
4. Nxd4 {[%clk 0:03:01.9]} 4... d6 {[%clk 0:02:51.6]} 5. Be3 {[%clk 0:03:01]}
5... Nf6 {[%clk 0:02:50.9]} 6. Bd3 {[%clk 0:02:58.3]} 6... Ne5 {[%clk
0:02:44.5]} 7. Be2 {[%clk 0:02:57.6]} 7... Nxe4 {[%clk 0:02:43.2]} 8. O-O {[%clk
0:02:55.4]} 8... Be7 {[%clk 0:02:42.1]} 9. f4 {[%clk 0:02:45.3]} 9... Nc6 {[%clk
0:02:39.5]} 10. Bf3 {[%clk 0:02:27.9]} 10... Nxd4 {[%clk 0:02:29.1]} 11. Qxd4
{[%clk 0:02:26.5]} 11... Nf6 {[%clk 0:02:28.7]} 12. Qa4+ {[%clk 0:02:16.2]}
12... c6 {[%clk 0:02:25.7]} 13. Nc3 {[%clk 0:02:14.7]} 13... O-O {[%clk
0:02:22.4]} 14. Rad1 {[%clk 0:02:14.1]} 14... d5 {[%clk 0:02:22.7]} 15. Bd4
{[%clk 0:02:13.1]} 15... b5 {[%clk 0:02:17.1]} 16. Qb3 {[%clk 0:02:12.2]} 16...
a5 {[%clk 0:02:17.5]} 17. a4 {[%clk 0:02:10.5]} 17... b4 {[%clk 0:02:13.7]} 18.
Ne2 {[%clk 0:02:09]} 18... Ba6 {[%clk 0:02:12.4]} 19. Rfe1 {[%clk 0:02:07.9]}
19... Re8 {[%clk 0:02:09.2]} 20. c3 {[%clk 0:01:55.4]} 20... Bc4 {[%clk
0:02:00.4]} 21. Qc2 {[%clk 0:01:55.1]} 21... b3 {[%clk 0:01:58.8]} 22. Qf5
{[%clk 0:01:49.8]} 22... g6 {[%clk 0:01:54.2]} 23. Qh3 {[%clk 0:01:45.1]} 23...
c5 {[%clk 0:01:44.9]} 24. Be5 {[%clk 0:01:38.3]} 24... Bd6 {[%clk 0:01:10]} 25.
Ng3 {[%clk 0:01:12.9]} 25... Qe7 {[%clk 0:00:14.6]} 26. Qh4 {[%clk 0:00:45.5]}
26... Nd7 {[%clk 0:00:04.8]} 27. Qxe7 {[%clk 0:00:40]} 27... Bxe7 {[%clk
0:00:05.7]} 28. Bxd5 {[%clk 0:00:39.1]} 28... Nxe5 {[%clk 0:00:06.1]} 29. Rxe5
{[%clk 0:00:34.3]} 29... Bxd5 {[%clk 0:00:04.7]} 30. Rexd5 {[%clk 0:00:34.2]}
30... c4 {[%clk 0:00:03.3]} 31. f5 {[%clk 0:00:31.8]} 31... Bf6 {[%clk
0:00:02.4]} 32. fxg6 {[%clk 0:00:31]} 32... hxg6 {[%clk 0:00:02.7]} 33. Rf1
{[%clk 0:00:28.9]} 33... Kg7 {[%clk 0:00:02.9]} 34. Rd6 {[%clk 0:00:26.6]} 34...
Re6 {[%clk 0:00:03.3]} 35. Rxe6 {[%clk 0:00:26]} 35... fxe6 {[%clk 0:00:04.2]}
36. Ne4 {[%clk 0:00:26.2]} 36... Be5 {[%clk 0:00:04.6]} 37. Rd1 {[%clk
0:00:26.1]} 37... Ra7 {[%clk 0:00:03.7]} 38. Rd8 {[%clk 0:00:24.2]} 38... Rf7
{[%clk 0:00:03.3]} 39. Rc8 {[%clk 0:00:23]} 39... Rf4 {[%clk 0:00:03.4]} 40.
Rxc4 {[%clk 0:00:20.7]} 40... Bxc3 {[%clk 0:00:02.6]} 41. Rxc3 {[%clk
0:00:16.9]} 41... Rxe4 {[%clk 0:00:02.9]} 42. Rxb3 {[%clk 0:00:17]} 42... Rxa4
{[%clk 0:00:03.4]} 43. Kf2 {[%clk 0:00:16.8]} 43... Rd4 {[%clk 0:00:03.3]} 44.
Ke3 {[%clk 0:00:16.2]} 44... Rh4 {[%clk 0:00:03.4]} 45. h3 {[%clk 0:00:15.8]}
45... Kf6 {[%clk 0:00:03.8]} 46. Rb5 {[%clk 0:00:15.2]} 46... a4 {[%clk
0:00:03.1]} 47. Ra5 {[%clk 0:00:14.6]} 47... Rb4 {[%clk 0:00:03.6]} 48. Kf3
{[%clk 0:00:09.4]} 48... e5 {[%clk 0:00:03.8]} 49. g3 {[%clk 0:00:08.7]} 49...
Kf5 {[%clk 0:00:03.8]} 50. h4 {[%clk 0:00:07.9]} 50... Rb3+ {[%clk 0:00:03.3]}
51. Kg2 {[%clk 0:00:07.7]} 51... Rxb2+ {[%clk 0:00:03.8]} 52. Kf3 {[%clk
0:00:07.9]} 52... Rb4 {[%clk 0:00:04.3]} 53. Ra7 {[%clk 0:00:05.3]} 53... Rb3+
{[%clk 0:00:04.4]} 54. Kf2 {[%clk 0:00:05]} 54... a3 {[%clk 0:00:05.1]} 55. Ra4
{[%clk 0:00:03.2]} 55... Rb2+ {[%clk 0:00:03.9]} 56. Kf3 {[%clk 0:00:03.2]}
56... e4+ {[%clk 0:00:03.9]} 57. Ke3 {[%clk 0:00:03.2]} 57... Rb3+ {[%clk
0:00:04.6]} 58. Kf2 {[%clk 0:00:02.8]} 58... Rb2+ {[%clk 0:00:04.5]} 59. Ke3
{[%clk 0:00:02.8]} 59... a2 {[%clk 0:00:04.9]} 60. g4+ {[%clk 0:00:02.1]} 60...
Kxg4 {[%clk 0:00:04.7]} 61. Rxe4+ {[%clk 0:00:02.4]} 61... Kh5 {[%clk
0:00:05.3]} 62. Ra4 {[%clk 0:00:03.3]} 62... Rh2 {[%clk 0:00:04.7]} 63. Kf3
{[%clk 0:00:03.5]} 63... Rb2 {[%clk 0:00:04]} 64. Kg3 {[%clk 0:00:03.3]} 64...
Rb3+ {[%clk 0:00:04.2]} 65. Kg2 {[%clk 0:00:02.9]} 65... Rb2+ {[%clk 0:00:04.8]}
66. Kg3 {[%clk 0:00:03.1]} 66... Kh6 {[%clk 0:00:05.5]} 67. Ra5 {[%clk
0:00:02.7]} 67... Rb3+ {[%clk 0:00:05.2]} 68. Kg2 {[%clk 0:00:02.4]} 68... Rb2+
{[%clk 0:00:04.2]} 69. Kg3 {[%clk 0:00:02.7]} 69... Kg7 {[%clk 0:00:04.8]} 70.
Kg4 {[%clk 0:00:02.5]} 70... Rb4+ {[%clk 0:00:03.9]} 71. Kg5 {[%clk 0:00:02.1]}
71... Rb5+ {[%clk 0:00:04.1]} 72. Rxb5 {[%clk 0:00:01.6]} 72... a1=Q {[%clk
0:00:04.5]} 73. Rb7+ {[%clk 0:00:02.4]} 73... Kf8 {[%clk 0:00:04.6]} 74. Rb8+
{[%clk 0:00:02.7]} 74... Ke7 {[%clk 0:00:04.4]} 75. Rb7+ {[%clk 0:00:03]} 75...
Kd6 {[%clk 0:00:04.2]} 76. Rb6+ {[%clk 0:00:03]} 76... Ke7 {[%clk 0:00:04.8]}
77. Rxg6 {[%clk 0:00:03.9]} 77... Qg1+ {[%clk 0:00:04.3]} 78. Kh6 {[%clk
0:00:03.8]} 78... Qe3+ {[%clk 0:00:04.9]} 79. Kh7 {[%clk 0:00:02.6]} 79... Qe4
{[%clk 0:00:03.6]} 80. h5 {[%clk 0:00:02.3]} 80... Kf7 {[%clk 0:00:03.9]} 81.
Kh6 {[%clk 0:00:02.3]} 81... Qe5 {[%clk 0:00:03.5]} 0-1

[Event "*** Titled Tuesday Blitz"]
[Site "Chess.com"]
[Date "2021.02.16"]
[Round "6"]
[White "nrvisakh"]
[Black "Salem-AR"]
[Result "1/2-1/2"]
[WhiteElo "2796"]
[BlackElo "2910"]
[TimeControl "180+1"]
[EndTime "11:10:44 PST"]
[Termination "Game drawn - insufficient material"]

1. c4 {[%clk 0:03:00.9]} 1... c5 {[%clk 0:02:59.5]} 2. Nc3 {[%clk 0:02:57.1]}
2... g6 {[%clk 0:02:59.9]} 3. Nf3 {[%clk 0:02:56.5]} 3... Bg7 {[%clk 0:03:00.5]}
4. e3 {[%clk 0:02:56.6]} 4... Nf6 {[%clk 0:02:59.8]} 5. d4 {[%clk 0:02:56.2]}
5... cxd4 {[%clk 0:02:59.9]} 6. exd4 {[%clk 0:02:56.3]} 6... d5 {[%clk
0:03:00.4]} 7. cxd5 {[%clk 0:02:57.2]} 7... Nxd5 {[%clk 0:03:00.2]} 8. Qb3
{[%clk 0:02:34.5]} 8... Nxc3 {[%clk 0:02:59.4]} 9. bxc3 {[%clk 0:02:31.1]} 9...
O-O {[%clk 0:02:59.5]} 10. Be2 {[%clk 0:02:24.9]} 10... Nc6 {[%clk 0:03:00.1]}
11. O-O {[%clk 0:02:24.4]} 11... Na5 {[%clk 0:03:00.7]} 12. Qb4 {[%clk
0:02:21.3]} 12... Be6 {[%clk 0:02:56.9]} 13. Bg5 {[%clk 0:02:16.3]} 13... Re8
{[%clk 0:02:54.4]} 14. Bb5 {[%clk 0:02:14.3]} 14... Nc6 {[%clk 0:02:53.7]} 15.
Bxc6 {[%clk 0:02:11.3]} 15... bxc6 {[%clk 0:02:53.6]} 16. Rfe1 {[%clk
0:02:11.5]} 16... Qc8 {[%clk 0:02:35.4]} 17. Bxe7 {[%clk 0:02:05.6]} 17... Rb8
{[%clk 0:02:34.9]} 18. Qa3 {[%clk 0:02:04.9]} 18... Bd5 {[%clk 0:02:34.8]} 19.
Bd6 {[%clk 0:01:59.8]} 19... Rb7 {[%clk 0:02:13.9]} 20. Rxe8+ {[%clk 0:01:58.1]}
20... Qxe8 {[%clk 0:02:14.8]} 21. Re1 {[%clk 0:01:58.1]} 21... Qc8 {[%clk
0:02:09.6]} 22. Qa6 {[%clk 0:01:47.1]} 22... h6 {[%clk 0:02:02.7]} 23. Ne5
{[%clk 0:01:28.2]} 23... Kh7 {[%clk 0:01:58.2]} 24. h3 {[%clk 0:01:23.8]} 24...
f6 {[%clk 0:01:25.2]} 25. Nd3 {[%clk 0:01:18.5]} 25... Qa8 {[%clk 0:01:10.1]}
26. c4 {[%clk 0:01:14.6]} 26... Rb6 {[%clk 0:01:04.2]} 27. Qa4 {[%clk
0:01:14.2]} 27... Bxg2 {[%clk 0:01:00.5]} 28. c5 {[%clk 0:00:37.2]} 28... Rb7
{[%clk 0:00:20.6]} 29. Kxg2 {[%clk 0:00:36.3]} 29... Qc8 {[%clk 0:00:21.5]} 30.
Nf4 {[%clk 0:00:34.3]} 30... Qf5 {[%clk 0:00:13.5]} 31. Qxc6 {[%clk 0:00:31.9]}
31... Rb2 {[%clk 0:00:14.2]} 32. Qe4 {[%clk 0:00:30.9]} 32... Qg5+ {[%clk
0:00:13.9]} 33. Kh1 {[%clk 0:00:28.7]} 33... f5 {[%clk 0:00:10.5]} 34. Qg2
{[%clk 0:00:28.6]} 34... Bxd4 {[%clk 0:00:07.7]} 35. Qxg5 {[%clk 0:00:26.3]}
35... hxg5 {[%clk 0:00:07.9]} 36. Nd3 {[%clk 0:00:26.5]} 36... Rd2 {[%clk
0:00:07.5]} 37. Re7+ {[%clk 0:00:14.7]} 37... Kh6 {[%clk 0:00:07.3]} 38. Ne5
{[%clk 0:00:13.6]} 38... Bxf2 {[%clk 0:00:05.2]} 39. Nf3 {[%clk 0:00:11.2]}
39... Rc2 {[%clk 0:00:03.7]} 40. Re8 {[%clk 0:00:09.3]} 40... g4 {[%clk
0:00:03.3]} 41. Rh8+ {[%clk 0:00:08.6]} 41... Kg7 {[%clk 0:00:03.7]} 42. Be5+
{[%clk 0:00:08.8]} 42... Kf7 {[%clk 0:00:04.5]} 43. hxg4 {[%clk 0:00:09.1]}
43... Ke7 {[%clk 0:00:05.3]} 44. gxf5 {[%clk 0:00:08.4]} 44... gxf5 {[%clk
0:00:06.2]} 45. Bd6+ {[%clk 0:00:07.7]} 45... Ke6 {[%clk 0:00:06.5]} 46. Rh2
{[%clk 0:00:07.7]} 46... Rc1+ {[%clk 0:00:06.1]} 47. Kg2 {[%clk 0:00:07.6]}
47... Be3 {[%clk 0:00:07]} 48. Kg3 {[%clk 0:00:07.5]} 48... Kd5 {[%clk 0:00:07]}
49. Re2 {[%clk 0:00:07.1]} 49... Rc3 {[%clk 0:00:04.7]} 50. Bf4 {[%clk
0:00:06.7]} 50... Bxc5 {[%clk 0:00:04.6]} 51. Re5+ {[%clk 0:00:07]} 51... Kc6
{[%clk 0:00:04.8]} 52. Rxf5 {[%clk 0:00:07.4]} 52... Ra3 {[%clk 0:00:05.6]} 53.
Be5 {[%clk 0:00:05.7]} 53... Rxa2 {[%clk 0:00:04.9]} 54. Bf4 {[%clk 0:00:06.1]}
54... a5 {[%clk 0:00:03.8]} 55. Ne5+ {[%clk 0:00:06.3]} 55... Kb7 {[%clk
0:00:03.3]} 56. Nd3 {[%clk 0:00:06]} 56... Bb4 {[%clk 0:00:03.6]} 57. Kg4 {[%clk
0:00:05.5]} 57... Kc6 {[%clk 0:00:03.2]} 58. Ne5+ {[%clk 0:00:05.5]} 58... Kd5
{[%clk 0:00:03.2]} 59. Nd3+ {[%clk 0:00:05.5]} 59... Kc4 {[%clk 0:00:03.7]} 60.
Ne5+ {[%clk 0:00:05.9]} 60... Kd5 {[%clk 0:00:04.2]} 61. Nf3+ {[%clk 0:00:06]}
61... Kc4 {[%clk 0:00:04.5]} 62. Rf7 {[%clk 0:00:05.5]} 62... Ra1 {[%clk
0:00:04.7]} 63. Rc7+ {[%clk 0:00:05.7]} 63... Kd5 {[%clk 0:00:05]} 64. Rd7+
{[%clk 0:00:05.2]} 64... Kc4 {[%clk 0:00:05.2]} 65. Ne5+ {[%clk 0:00:05.2]}
65... Kb3 {[%clk 0:00:05.7]} 66. Nd3 {[%clk 0:00:05.5]} 66... Rg1+ {[%clk
0:00:04.9]} 67. Kf3 {[%clk 0:00:05]} 67... Bc3 {[%clk 0:00:05.1]} 68. Nc5+
{[%clk 0:00:04.9]} 68... Kc4 {[%clk 0:00:05]} 69. Rc7 {[%clk 0:00:05.2]} 69...
Bb4 {[%clk 0:00:05.6]} 70. Ne4+ {[%clk 0:00:04.5]} 70... Kb5 {[%clk 0:00:06.1]}
71. Be3 {[%clk 0:00:04.6]} 71... Rf1+ {[%clk 0:00:06.1]} 72. Ke2 {[%clk
0:00:04.8]} 72... Rh1 {[%clk 0:00:06.8]} 73. Kd3 {[%clk 0:00:05]} 73... Rh3
{[%clk 0:00:07.2]} 74. Nc3+ {[%clk 0:00:04.4]} 74... Bxc3 {[%clk 0:00:06.8]} 75.
Rxc3 {[%clk 0:00:05.3]} 75... a4 {[%clk 0:00:07.3]} 76. Rc8 {[%clk 0:00:05.8]}
76... a3 {[%clk 0:00:04.3]} 77. Kd4 {[%clk 0:00:05.9]} 77... a2 {[%clk
0:00:04.4]} 78. Ra8 {[%clk 0:00:06.1]} 78... Rh4+ {[%clk 0:00:04.8]} 79. Kd3
{[%clk 0:00:05]} 79... Ra4 {[%clk 0:00:05.3]} 80. Rxa4 {[%clk 0:00:05.4]} 80...
Kxa4 {[%clk 0:00:06.2]} 81. Bd4 {[%clk 0:00:05.8]} 81... a1=Q {[%clk 0:00:06.5]}
82. Bxa1 {[%clk 0:00:06.7]} 1/2-1/2

[Event "*** Titled Tuesday Blitz"]
[Site "Chess.com"]
[Date "2021.02.16"]
[Round "7"]
[White "arminmusovic"]
[Black "Susal_De_Silva"]
[Result "1-0"]
[WhiteElo "2497"]
[BlackElo "2613"]
[TimeControl "180+1"]
[EndTime "11:12:37 PST"]
[Termination "arminmusovic won by resignation"]

1. a3 {[%clk 0:03:00.9]} 1... b6 {[%clk 0:02:59.3]} 2. Nc3 {[%clk 0:03:00.6]}
2... Bb7 {[%clk 0:03:00.2]} 3. e4 {[%clk 0:03:01.1]} 3... g6 {[%clk 0:02:59.9]}
4. d4 {[%clk 0:03:01.1]} 4... Bg7 {[%clk 0:03:00.8]} 5. Bg5 {[%clk 0:03:01.6]}
5... h6 {[%clk 0:03:00.6]} 6. Bh4 {[%clk 0:03:02]} 6... d6 {[%clk 0:03:00.3]} 7.
f4 {[%clk 0:03:02.1]} 7... Nd7 {[%clk 0:03:00.2]} 8. Nf3 {[%clk 0:03:02.1]} 8...
Ngf6 {[%clk 0:02:57.1]} 9. e5 {[%clk 0:03:02.1]} 9... Ne4 {[%clk 0:02:55.2]} 10.
Bd3 {[%clk 0:02:54]} 10... Nxc3 {[%clk 0:02:53.4]} 11. bxc3 {[%clk 0:02:54.9]}
11... dxe5 {[%clk 0:02:49.2]} 12. fxe5 {[%clk 0:02:54.4]} 12... O-O {[%clk
0:02:45]} 13. O-O {[%clk 0:02:44.4]} 13... e6 {[%clk 0:02:41.1]} 14. Bxd8 {[%clk
0:02:43.8]} 1-0

[Event "*** Titled Tuesday Blitz"]
[Site "Chess.com"]
[Date "2021.02.16"]
[Round "7"]
[White "starplatinum2030"]
[Black "Balla_Tamas"]
[Result "0-1"]
[WhiteElo "2167"]
[BlackElo "2456"]
[TimeControl "180+1"]
[EndTime "11:14:08 PST"]
[Termination "Balla_Tamas won by resignation"]

1. e4 {[%clk 0:03:00.9]} 1... g6 {[%clk 0:02:57]} 2. d4 {[%clk 0:02:59.1]} 2...
Bg7 {[%clk 0:02:56.4]} 3. Nc3 {[%clk 0:02:57.6]} 3... c6 {[%clk 0:02:55.9]} 4.
f4 {[%clk 0:02:55.8]} 4... d5 {[%clk 0:02:55.3]} 5. e5 {[%clk 0:02:56.1]} 5...
Nh6 {[%clk 0:02:54.3]} 6. Nf3 {[%clk 0:02:53.1]} 6... Bg4 {[%clk 0:02:53.4]} 7.
Be3 {[%clk 0:02:52.2]} 7... O-O {[%clk 0:02:51.9]} 8. Bd3 {[%clk 0:02:51.8]}
8... f6 {[%clk 0:02:49.3]} 9. Qd2 {[%clk 0:02:49.3]} 9... Nf5 {[%clk 0:02:22.7]}
10. Bf2 {[%clk 0:02:46]} 10... Bxf3 {[%clk 0:02:18.1]} 11. gxf3 {[%clk
0:02:45.5]} 11... fxe5 {[%clk 0:02:13.8]} 12. fxe5 {[%clk 0:02:45.9]} 12... Bh6
{[%clk 0:02:13.2]} 13. f4 {[%clk 0:02:42.5]} 13... e6 {[%clk 0:02:11.7]} 14. Ne2
{[%clk 0:02:37.6]} 14... c5 {[%clk 0:02:02.1]} 15. c3 {[%clk 0:02:32.2]} 15...
Nc6 {[%clk 0:02:00.5]} 16. dxc5 {[%clk 0:02:23.1]} 16... Nxe5 {[%clk 0:01:58.5]}
17. Bxf5 {[%clk 0:02:16.9]} 17... Nf3+ {[%clk 0:01:57.7]} 0-1

[Event "*** Titled Tuesday Blitz"]
[Site "Chess.com"]
[Date "2021.02.16"]
[Round "7"]
[White "PlotnikovPavel"]
[Black "Cecile-Haussernot"]
[Result "1/2-1/2"]
[WhiteElo "2464"]
[BlackElo "2314"]
[TimeControl "180+1"]
[EndTime "11:14:15 PST"]
[Termination "Game drawn by agreement"]

1. e4 {[%clk 0:03:00.9]} 1... c5 {[%clk 0:03:00.2]} 2. Nc3 {[%clk 0:03:00.6]}
2... Nc6 {[%clk 0:02:57.8]} 3. Bb5 {[%clk 0:02:59.9]} 3... Nd4 {[%clk
0:02:50.2]} 4. Nf3 {[%clk 0:02:59.1]} 4... Nxb5 {[%clk 0:02:46.1]} 5. Nxb5
{[%clk 0:03:00]} 5... a6 {[%clk 0:02:43.2]} 6. Nc3 {[%clk 0:02:59.2]} 6... b5
{[%clk 0:02:43.1]} 7. d4 {[%clk 0:02:58.9]} 7... cxd4 {[%clk 0:02:42]} 8. Nxd4
{[%clk 0:02:59.8]} 8... Bb7 {[%clk 0:02:41.8]} 9. a3 {[%clk 0:02:59.2]} 9... e6
{[%clk 0:02:34.6]} 10. O-O {[%clk 0:02:58.6]} 10... Nf6 {[%clk 0:02:33.2]} 11.
Bg5 {[%clk 0:02:57.8]} 11... Be7 {[%clk 0:02:33.2]} 12. Qe2 {[%clk 0:02:56.6]}
12... O-O {[%clk 0:02:31.4]} 13. Rad1 {[%clk 0:02:52.1]} 13... Rc8 {[%clk
0:02:27.4]} 14. e5 {[%clk 0:02:46.5]} 14... Nd5 {[%clk 0:02:12.8]} 15. Bxe7
{[%clk 0:02:45.9]} 15... Qxe7 {[%clk 0:02:09.4]} 16. Nxd5 {[%clk 0:02:45.5]}
16... Bxd5 {[%clk 0:02:04.3]} 17. c3 {[%clk 0:02:39.9]} 17... Rc4 {[%clk
0:01:57.1]} 18. Nf5 {[%clk 0:02:34.9]} 18... Qg5 {[%clk 0:01:48.5]} 19. Ne3
{[%clk 0:02:32]} 19... Qxe5 {[%clk 0:01:37.5]} 1/2-1/2

[Event "*** Titled Tuesday Blitz"]
[Site "Chess.com"]
[Date "2021.02.16"]
[Round "7"]
[White "Kurkusha"]
[Black "FMOlexandrProhorov"]
[Result "1/2-1/2"]
[WhiteElo "2362"]
[BlackElo "2129"]
[TimeControl "180+1"]
[EndTime "11:14:43 PST"]
[Termination "Game drawn by agreement"]

1. d4 {[%clk 0:02:53.2]} 1... g6 {[%clk 0:02:36.5]} 2. c4 {[%clk 0:02:51.8]}
2... Bg7 {[%clk 0:02:37.4]} 3. Nf3 {[%clk 0:02:52]} 3... c5 {[%clk 0:02:38.3]}
4. Nc3 {[%clk 0:02:51.6]} 4... cxd4 {[%clk 0:02:38.1]} 5. Nxd4 {[%clk
0:02:52.5]} 5... Nc6 {[%clk 0:02:38.8]} 6. Nb3 {[%clk 0:02:52.1]} 6... Qb6
{[%clk 0:02:35.3]} 7. Nd5 {[%clk 0:02:43.4]} 7... Qd8 {[%clk 0:02:31.2]} 8. Bf4
{[%clk 0:02:38.1]} 8... d6 {[%clk 0:02:26.6]} 9. Qd2 {[%clk 0:02:37.5]} 9... Nf6
{[%clk 0:02:26]} 10. Nxf6+ {[%clk 0:02:31.1]} 10... Bxf6 {[%clk 0:02:23.7]} 11.
Bh6 {[%clk 0:02:31.4]} 11... Bf5 {[%clk 0:02:22.2]} 12. e3 {[%clk 0:02:27.6]}
12... a5 {[%clk 0:02:20.4]} 13. Be2 {[%clk 0:02:25]} 13... a4 {[%clk 0:02:18.9]}
14. Nd4 {[%clk 0:02:25.1]} 14... Qb6 {[%clk 0:02:15.1]} 15. Nb5 {[%clk
0:02:17.7]} 15... a3 {[%clk 0:02:12.6]} 1/2-1/2